bitfinex-derivatives/quotes_BTCF0:USTF0_20250119
["timestamp","ask_amount","ask_price","bid_price","bid_amount"]
[1737316271201,0.20913157,105660.0,105650.0,0.67701874]
[1737316272003,0.20913157,105660.0,105650.0,0.6770188]
[1737316273203,0.20913157,105660.0,105650.0,0.67758169]
[1737316273503,0.20913157,105660.0,105650.0,0.6770188]
[1737316275307,0.03850704,105660.0,105650.0,1.52797586]
[1737316275507,0.39930704,105660.0,105650.0,1.52797586]
[1737316275709,0.39930704,105660.0,105650.0,1.51847615]
[1737316276119,0.39930704,105660.0,105650.0,0.66751909]
[1737316281117,0.39930704,105660.0,105650.0,1.00511317]
[1737316283123,0.39930704,105660.0,105650.0,1.00511329]
[1737316283714,0.39930704,105660.0,105650.0,0.66751921]
[1737316283911,0.39930704,105660.0,105650.0,0.6598172]
[1737316284110,0.39930704,105660.0,105650.0,0.86629924]
[1737316284423,0.39930704,105660.0,105650.0,1.01549924]
[1737316284913,0.39930704,105660.0,105650.0,0.96811924]
[1737316286422,0.39930704,105660.0,105650.0,0.96868217]
[1737316287619,0.39930704,105660.0,105650.0,0.96868137]
[1737316288225,0.39930704,105660.0,105650.0,1.41410486]
[1737316289023,0.03850704,105660.0,105650.0,1.46148486]
[1737316289221,0.408173,105670.0,105650.0,1.82172215]
[1737316289422,0.408173,105670.0,105660.0,0.15766254]
[1737316289630,0.408173,105670.0,105660.0,0.165364]
[1737316290126,0.408173,105670.0,105660.0,0.16480146]
[1737316290325,0.047373,105670.0,105660.0,0.165364]
[1737316290914,0.047373,105670.0,105660.0,0.1571]
[1737316291119,0.047369,105680.0,105660.0,0.57353867]
[1737316291321,0.408169,105680.0,105670.0,0.3164]
[1737316291521,0.408169,105680.0,105670.0,0.32410014]
[1737316291823,0.047369,105680.0,105670.0,0.32410014]
[1737316292825,0.047369,105680.0,105670.0,0.3164]
[1737316293027,0.047369,105680.0,105670.0,0.32410006]
[1737316293224,0.047369,105680.0,105670.0,0.98391726]
[1737316293623,0.408169,105680.0,105670.0,0.98391726]
[1737316294234,0.047369,105680.0,105670.0,0.98391726]
[1737316294526,0.408169,105680.0,105670.0,0.98391726]
[1737316294733,0.047369,105680.0,105670.0,0.98391726]
[1737316295533,0.047369,105680.0,105670.0,0.99365254]
[1737316295735,0.047369,105680.0,105670.0,1.33063768]
[1737316296927,0.047369,105680.0,105670.0,1.3306377]
[1737316297128,0.408169,105680.0,105670.0,1.3306377]
[1737316303337,0.408169,105680.0,105670.0,1.33063781]
[1737316305129,0.45553,105690.0,105670.0,0.99365267]
[1737316305638,0.047368,105680.0,105670.0,0.99365267]
[1737316305942,0.408168,105680.0,105670.0,0.99365267]
[1737316307040,0.408168,105680.0,105670.0,1.33039547]
[1737316308431,0.408168,105680.0,105670.0,1.33039558]
[1737316310042,0.45553,105690.0,105670.0,1.37776658]
[1737316310242,0.45553,105690.0,105670.0,1.37006628]
[1737316310440,0.047368,105680.0,105670.0,1.37776625]
[1737316310744,0.047368,105680.0,105670.0,1.38368922]
[1737316311041,0.047368,105680.0,105670.0,1.3836891]
[1737316311537,0.047368,105680.0,105670.0,0.9995753]
[1737316311836,0.1,105700.0,105680.0,0.047367]
[1737316312043,1e-08,105700.0,105690.0,0.98806]
[1737316312236,0.04732001,105700.0,105690.0,1.00224424]
[1737316313139,0.3608,105710.0,105690.0,1.33906533]
[1737316313344,0.408154,105710.0,105690.0,1.74731317]
[1737316314346,0.408154,105710.0,105700.0,0.28052514]
[1737316314646,0.408154,105710.0,105700.0,0.29414796]
[1737316314835,0.408154,105710.0,105700.0,0.34150596]
[1737316315750,0.408154,105710.0,105700.0,0.64358994]
[1737316316044,0.047354,105710.0,105700.0,0.64358994]
[1737316316251,0.047354,105710.0,105700.0,0.64358639]
[1737316317752,0.047354,105710.0,105700.0,0.64358641]
[1737316319652,0.047354,105710.0,105700.0,0.65322912]
[1737316320549,0.408154,105710.0,105700.0,0.65322912]
[1737316322348,0.408154,105710.0,105700.0,0.60587112]
[1737316323352,0.408154,105710.0,105700.0,0.65624564]
[1737316324647,0.408154,105710.0,105700.0,0.31942455]
[1737316325357,0.408154,105710.0,105700.0,0.31942485]
[1737316326645,0.408154,105710.0,105700.0,0.32534652]
[1737316328655,0.408154,105710.0,105700.0,0.31942485]
[1737316329949,0.878154,105710.0,105700.0,0.31942485]
[1737316331252,0.047358,105700.0,105690.0,0.33690893]
[1737316331460,0.408158,105700.0,105690.0,0.34460776]
[1737316331954,0.04737,105680.0,105660.0,0.96498273]
[1737316332156,0.04737,105680.0,105660.0,0.55572933]
[1737316332157,0.047371,105670.0,105660.0,0.55572933]
[1737316332548,0.3608,105680.0,105660.0,0.16151942]
[1737316332855,0.3608,105700.0,105670.0,0.719971]
[1737316333057,0.04745373,105690.0,105680.0,0.5161]
[1737316333248,0.02626839,105690.0,105680.0,0.5161]
[1737316333656,0.02626839,105690.0,105680.0,0.51666102]
[1737316333856,0.02626839,105690.0,105680.0,0.5161]
[1737316334163,9.173e-05,105690.0,105680.0,0.563467]
[1737316334352,9.173e-05,105690.0,105680.0,0.56402802]
[1737316334553,0.408158,105700.0,105680.0,0.56402802]
[1737316334761,0.047358,105700.0,105680.0,0.53086102]
[1737316335063,0.047358,105700.0,105690.0,0.3068]
[1737316336551,0.047358,105700.0,105690.0,0.63977209]
[1737316339060,0.047358,105700.0,105690.0,0.64915683]
[1737316341362,0.047358,105700.0,105690.0,0.64969752]
[1737316341855,0.3608,105710.0,105690.0,0.65443493]
[1737316342062,0.408149,105720.0,105700.0,0.87038069]
[1737316342266,0.408149,105720.0,105710.0,0.305]
[1737316342455,0.408149,105720.0,105710.0,0.30973741]
[1737316342655,0.1416648,105740.0,105730.0,0.047344]
[1737316342960,0.16999776,105750.0,105730.0,1.28337799]
[1737316343158,0.14186858,105760.0,105740.0,0.3608]
[1737316343460,0.14186858,105760.0,105750.0,0.408135]
[1737316343656,0.19837102,105790.0,105760.0,0.047331]
[1737316343859,0.19837102,105790.0,105780.0,0.3608]
[1737316344159,0.68746369,105800.0,105780.0,0.86976]
[1737316344460,0.07946369,105800.0,105790.0,0.36090156]
[1737316344658,0.12677669,105800.0,105790.0,0.00779384]
[1737316344864,0.047313,105800.0,105790.0,0.00779384]
[1737316345055,0.408113,105800.0,105790.0,0.00779384]
[1737316345458,0.408113,105800.0,105790.0,0.00306013]
[1737316345659,0.047313,105800.0,105790.0,0.00306013]
[1737316346055,0.408113,105800.0,105790.0,0.33603222]
[1737316346462,0.408113,105800.0,105790.0,1.28153222]
[1737316346463,0.047313,105800.0,105790.0,1.28153222]
[1737316346763,0.047313,105800.0,105790.0,1.28626573]
[1737316346963,0.047313,105800.0,105790.0,1.70321353]
[1737316347462,0.1518,105820.0,105790.0,1.11851353]
[1737316347656,0.047312,105810.0,105800.0,0.3608]
[1737316347854,0.047312,105810.0,105800.0,0.36849208]
[1737316348257,0.047312,105810.0,105800.0,0.36375857]
[1737316348463,0.408112,105810.0,105800.0,0.00295857]
[1737316348666,0.408112,105810.0,105800.0,0.00295831]
[1737316348955,0.047312,105810.0,105800.0,0.74991989]
[1737316349157,0.20933456,105810.0,105800.0,0.74991989]
[1737316349363,0.408112,105810.0,105800.0,0.74991989]
[1737316349665,0.047312,105810.0,105800.0,0.74991989]
[1737316350057,0.047312,105810.0,105800.0,0.4169478]
[1737316350361,0.62422056,105820.0,105800.0,0.4169478]
[1737316350558,0.047312,105810.0,105800.0,0.4169478]
[1737316350862,0.408112,105810.0,105800.0,8e-07]
[1737316351162,0.408112,105810.0,105800.0,0.27745033]
[1737316351765,0.047312,105810.0,105800.0,0.27745033]
[1737316352667,0.047313,105800.0,105790.0,0.52732551]
[1737316352864,0.047313,105800.0,105790.0,0.53028386]
[1737316353069,0.047313,105800.0,105790.0,0.57760086]
[1737316353363,0.26342056,105820.0,105790.0,0.58233384]
[1737316353668,0.047308,105810.0,105800.0,0.3608]
[1737316353969,0.047308,105810.0,105800.0,0.36375835]
[1737316354566,0.047308,105810.0,105800.0,0.3608]
[1737316354763,0.047308,105810.0,105800.0,0.52988345]
[1737316355365,0.047308,105810.0,105800.0,0.16908345]
[1737316355563,0.047308,105810.0,105800.0,0.52988345]
[1737316357764,0.047308,105810.0,105800.0,0.06989345]
[1737316357970,0.408108,105810.0,105800.0,3.2e-07]
[1737316358162,0.559708,105810.0,105800.0,3.2e-07]
[1737316358869,0.559708,105810.0,105790.0,0.00010156]
[1737316359068,0.559708,105810.0,105790.0,0.0030602]
[1737316359069,0.565213,105800.0,105790.0,0.0030602]
[1737316359870,0.565213,105800.0,105790.0,0.00306023]
[1737316360268,0.204413,105800.0,105790.0,0.00306023]
[1737316360475,0.204413,105800.0,105790.0,0.00010156]
[1737316361077,0.204413,105800.0,105790.0,0.00306014]
[1737316362078,0.204413,105800.0,105790.0,0.36386014]
[1737316362378,0.565213,105800.0,105790.0,0.00306014]
[1737316362566,0.36639897,105800.0,105790.0,0.00306014]
[1737316362763,0.559708,105810.0,105790.0,0.00306014]
[1737316362961,0.047313,105800.0,105790.0,0.36386014]
[1737316363174,0.047313,105800.0,105790.0,0.36386006]
[1737316363377,0.559708,105810.0,105790.0,0.58575866]
[1737316363680,0.559708,105810.0,105790.0,0.63307566]
[1737316363681,0.047313,105800.0,105790.0,0.63307566]
[1737316363870,0.047313,105800.0,105790.0,0.63780915]
[1737316364073,0.047313,105800.0,105790.0,0.80140905]
[1737316364673,0.04731,105810.0,105800.0,0.047312]
[1737316364873,0.04731,105810.0,105800.0,0.4110705]
[1737316365275,0.04731,105810.0,105800.0,0.41580299]
[1737316365676,0.10442056,105820.0,105800.0,0.41580299]
[1737316365677,0.10442056,105820.0,105810.0,0.047309]
[1737316365883,0.10442056,105820.0,105810.0,0.41106707]
[1737316366274,0.10442056,105820.0,105810.0,0.36375807]
[1737316366785,0.10442056,105820.0,105810.0,0.41106707]
[1737316367179,0.10442056,105820.0,105810.0,0.41579983]
[1737316367386,0.10442056,105820.0,105810.0,0.00769083]
[1737316367581,0.408101,105830.0,105810.0,0.05499983]
[1737316367976,0.408101,105830.0,105810.0,0.00769083]
[1737316367977,0.047306,105820.0,105810.0,0.00769083]
[1737316368377,0.047306,105820.0,105810.0,0.27699862]
[1737316369191,0.566997,105840.0,105810.0,0.59048952]
[1737316369383,0.047304,105830.0,105820.0,0.3608]
[1737316369579,0.047304,105830.0,105820.0,0.00769073]
[1737316369788,0.408104,105830.0,105820.0,0.00769073]
[1737316370592,0.047304,105830.0,105820.0,0.41579473]
[1737316370790,0.047304,105830.0,105820.0,0.21839473]
[1737316371091,0.047304,105830.0,105820.0,0.57919473]
[1737316371391,0.047304,105830.0,105820.0,0.21839399]
[1737316371796,0.047304,105830.0,105820.0,0.57919399]
[1737316372486,0.047304,105830.0,105820.0,1.20059055]
[1737316372681,0.3608,105850.0,105820.0,1.20059055]
[1737316372887,0.047292,105850.0,105830.0,0.3608]
[1737316373083,0.3608,105850.0,105830.0,0.05498699]
[1737316373391,0.047289,105860.0,105850.0,0.04729]
[1737316373594,0.047289,105860.0,105850.0,0.00768999]
[1737316373986,0.047289,105860.0,105850.0,0.05498099]
[1737316374184,0.047284,105870.0,105860.0,0.047286]
[1737316374387,0.48750905,105880.0,105870.0,0.047282]
[1737316374684,0.48750905,105880.0,105870.0,0.00768999]
[1737316376390,0.48750905,105880.0,105870.0,0.62908655]
[1737316377491,0.48750905,105880.0,105870.0,0.51133655]
[1737316377691,0.047282,105870.0,105860.0,0.33284791]
[1737316377891,0.729082,105870.0,105860.0,0.33284791]
[1737316378291,0.729082,105870.0,105830.0,0.00141737]
[1737316378496,0.408095,105840.0,105830.0,0.00141737]
[1737316378794,0.047304,105820.0,105810.0,0.82074]
[1737316379297,0.408104,105820.0,105810.0,0.50844]
[1737316379494,0.047313,105800.0,105790.0,0.88877867]
[1737316379797,0.408113,105800.0,105790.0,0.88877867]
[1737316380497,0.047318,105790.0,105780.0,0.6522327]
[1737316381594,0.04740637,105790.0,105780.0,0.6522327]
[1737316382989,0.04740637,105790.0,105780.0,0.68050218]
[1737316382990,8.837e-05,105790.0,105780.0,0.68050218]
[1737316383191,0.047314,105800.0,105780.0,0.84360218]
[1737316383392,0.047314,105800.0,105790.0,0.3608]
[1737316384298,0.047309,105810.0,105790.0,0.408117]
[1737316384696,0.047309,105810.0,105800.0,0.3608]
[1737316385290,0.047313,105800.0,105790.0,0.3608]
[1737316386593,0.04731,105810.0,105790.0,0.408118]
[1737316387203,0.04731,105810.0,105800.0,0.3608]
[1737316387394,0.04731,105810.0,105800.0,0.0047329]
[1737316387993,0.04731,105810.0,105800.0,0.22768507]
[1737316388499,0.04731,105810.0,105800.0,0.22743262]
[1737316389498,0.04731,105810.0,105800.0,0.22591035]
[1737316390000,0.40811,105810.0,105800.0,0.22591035]
[1737316390905,0.56471,105810.0,105800.0,0.22591035]
[1737316392306,0.56471,105810.0,105800.0,0.00295818]
[1737316392698,0.56471,105810.0,105790.0,0.22295217]
[1737316393004,0.047322,105780.0,105770.0,0.50854597]
[1737316393199,0.408122,105780.0,105770.0,0.50854597]
[1737316394399,0.408122,105780.0,105770.0,0.4742996]
[1737316395609,0.768922,105780.0,105770.0,0.00010597]
[1737316395909,0.047335,105750.0,105740.0,0.5667573]
[1737316396202,0.04734,105740.0,105730.0,0.50864]
[1737316396409,0.40814,105740.0,105730.0,0.50864]
[1737316396802,0.04743422,105740.0,105730.0,0.50864]
[1737316397503,0.04743422,105740.0,105730.0,0.50872725]
[1737316398411,9.422e-05,105740.0,105730.0,0.87426334]
[1737316399097,9.422e-05,105740.0,105730.0,0.87426299]
[1737316399900,0.04743422,105740.0,105730.0,0.87426299]
[1737316400208,0.0473146,105740.0,105730.0,0.87426299]
[1737316400610,0.0473146,105740.0,105730.0,0.86952725]
[1737316400912,0.0473146,105740.0,105730.0,0.87426319]
[1737316401103,0.0473146,105740.0,105730.0,0.86952725]
[1737316401604,0.0473146,105740.0,105730.0,0.82218325]
[1737316403413,0.0473146,105740.0,105730.0,0.82691904]
[1737316403711,0.0473146,105740.0,105730.0,0.82218325]
[1737316404512,0.0473146,105740.0,105730.0,0.82691896]
[1737316404717,0.0473146,105740.0,105730.0,0.82218325]
[1737316404904,0.0473146,105740.0,105730.0,0.82514309]
[1737316405104,0.0473146,105740.0,105730.0,0.82987895]
[1737316405312,0.0473146,105740.0,105730.0,0.82514309]
[1737316406108,0.047335,105750.0,105730.0,0.82987898]
[1737316406816,0.04734,105740.0,105730.0,0.8298791]
[1737316415323,0.1548,105770.0,105730.0,0.8772231]
[1737316415516,0.202128,105770.0,105760.0,0.3608]
[1737316415715,0.202128,105770.0,105760.0,0.36849523]
[1737316415915,0.202128,105770.0,105760.0,0.41582623]
[1737316416419,0.047328,105770.0,105760.0,0.41582497]
[1737316416611,0.047328,105770.0,105760.0,0.05502497]
[1737316416811,0.047328,105770.0,105760.0,0.41582497]
[1737316417013,0.047328,105770.0,105760.0,0.4158249]
[1737316417206,0.55842,105790.0,105760.0,0.4158249]
[1737316417413,0.047323,105780.0,105770.0,0.201225]
[1737316417615,0.047323,105780.0,105770.0,0.2089189]
[1737316420027,0.047323,105780.0,105770.0,0.48749584]
[1737316421326,0.047323,105780.0,105770.0,1.14774836]
[1737316422526,0.04732,105790.0,105780.0,0.047322]
[1737316422824,0.04732,105790.0,105780.0,0.0550159]
[1737316423418,0.1557,105800.0,105780.0,0.5731159]
[1737316423623,0.047314,105800.0,105790.0,0.408115]
[1737316423825,0.047314,105800.0,105790.0,0.4158089]
[1737316424125,0.047314,105800.0,105790.0,0.05500679]
[1737316424510,0.563611,105810.0,105790.0,0.05500679]
[1737316424511,0.3608,105810.0,105790.0,0.05500679]
[1737316424720,0.047309,105810.0,105800.0,0.408111]
[1737316425023,0.047309,105810.0,105800.0,0.57520279]
[1737316425427,0.047309,105810.0,105800.0,1.14849884]
[1737316426719,0.047309,105810.0,105800.0,0.57046938]
[1737316427921,0.047309,105810.0,105800.0,0.57046897]
[1737316428124,0.047306,105820.0,105800.0,0.57046897]
[1737316428311,0.047306,105820.0,105810.0,0.5124]
[1737316428517,0.047306,105820.0,105810.0,0.56266597]
[1737316429630,0.047302,105830.0,105810.0,0.56266597]
[1737316430631,0.047304,105820.0,105810.0,0.56266597]
[1737316432425,0.047304,105820.0,105810.0,0.56266559]
[1737316435031,0.047304,105820.0,105810.0,0.5626657]
[1737316435331,0.047304,105820.0,105810.0,0.559708]
[1737316435535,0.047304,105820.0,105810.0,0.56266565]
[1737316435833,0.047304,105820.0,105810.0,0.56266561]
[1737316436633,0.047304,105820.0,105810.0,0.51535761]
[1737316437233,0.047299,105830.0,105810.0,0.56266361]
[1737316437538,0.047299,105830.0,105820.0,0.3608]
[1737316439825,0.047299,105830.0,105820.0,0.36375765]
[1737316440836,0.047299,105830.0,105820.0,0.41106165]
[1737316441132,0.047299,105830.0,105820.0,0.408104]
[1737316441334,0.047299,105830.0,105820.0,0.41106145]
[1737316443132,0.047299,105830.0,105820.0,0.4228016]
[1737316444734,0.047299,105830.0,105820.0,0.3754976]
[1737316445835,0.047299,105830.0,105820.0,0.0146976]
[1737316446436,0.408099,105830.0,105820.0,0.0146976]
[1737316446735,0.408099,105830.0,105820.0,0.01469803]
[1737316447236,0.408099,105830.0,105820.0,0.01469805]
[1737316450428,0.408099,105830.0,105820.0,0.00295797]
[1737316450629,0.455403,105830.0,105820.0,0.00295797]
[1737316451431,0.047304,105820.0,105810.0,0.27857694]
[1737316451631,0.571804,105820.0,105810.0,0.28153498]
[1737316452031,0.571804,105820.0,105810.0,0.00295804]
[1737316453632,0.571804,105820.0,105810.0,0.57707298]
[1737316454035,0.3608,105830.0,105810.0,0.93787298]
[1737316454344,0.047303,105830.0,105820.0,0.408103]
[1737316454537,0.047303,105830.0,105820.0,0.56286104]
[1737316454941,0.047303,105830.0,105820.0,0.84143734]
[1737316455738,0.047303,105830.0,105820.0,0.8461691]
[1737316456137,0.047303,105830.0,105820.0,1.21080112]
[1737316456340,0.047303,105830.0,105820.0,1.21080105]
[1737316457537,0.047303,105830.0,105820.0,1.1988581]
[1737316457737,0.047303,105830.0,105820.0,1.19412635]
[1737316458239,0.047303,105830.0,105820.0,1.19412626]
[1737316458636,0.047303,105830.0,105820.0,0.85839825]
[1737316459937,0.047303,105830.0,105820.0,0.87068481]
[1737316460146,0.047303,105830.0,105820.0,1.20641282]
[1737316460348,0.047303,105830.0,105820.0,1.15910982]
[1737316461343,0.047303,105830.0,105820.0,1.43883033]
[1737316461939,0.047303,105830.0,105820.0,1.43587308]
[1737316462138,0.047303,105830.0,105820.0,1.43883048]
[1737316462739,0.047303,105830.0,105820.0,1.4388305]
[1737316462939,0.047303,105830.0,105820.0,1.10310249]
[1737316465147,0.198497,105840.0,105820.0,1.15040349]
[1737316465343,0.67275638,105860.0,105830.0,0.559699]
[1737316465548,0.047294,105850.0,105830.0,0.56265642]
[1737316465745,0.83325638,105860.0,105830.0,0.56265642]
[1737316465746,0.047295,105840.0,105830.0,0.56265642]
[1737316466448,0.047295,105840.0,105830.0,1.54146363]
[1737316467743,0.047293,105850.0,105830.0,1.53850621]
[1737316467946,0.047293,105850.0,105830.0,1.5414633]
[1737316468342,0.047295,105840.0,105830.0,1.4941643]
[1737316470146,0.047295,105840.0,105830.0,1.5414633]
[1737316471954,0.047295,105840.0,105830.0,1.4941643]
[1737316472252,0.047295,105840.0,105830.0,1.1333643]
[1737316472451,0.047295,105840.0,105830.0,1.4941643]
[1737316473055,0.047295,105840.0,105830.0,0.81089509]
[1737316473650,0.047295,105840.0,105830.0,0.80961115]
[1737316475448,0.047295,105840.0,105830.0,0.85691015]
[1737316476154,0.047295,105840.0,105830.0,1.19263816]
[1737316477560,0.047295,105840.0,105830.0,1.53690266]
[1737316478158,0.047295,105840.0,105830.0,1.53690259]
[1737316479762,0.047295,105840.0,105830.0,1.54163386]
[1737316479954,0.047295,105840.0,105830.0,1.14105035]
[1737316483864,0.047295,105840.0,105830.0,1.09375135]
[1737316484166,0.047295,105840.0,105830.0,1.49741751]
[1737316484566,0.047295,105840.0,105830.0,1.54471651]
[1737316485970,0.047295,105840.0,105830.0,1.54471649]
[1737316486870,0.047295,105840.0,105830.0,1.19736938]
[1737316488279,0.047292,105850.0,105830.0,0.86163737]
[1737316488573,0.15965238,105870.0,105850.0,0.047291]
[1737316488765,0.15965238,105870.0,105860.0,0.3608]
[1737316488974,0.15965238,105870.0,105860.0,0.36848831]
[1737316489271,0.15965238,105870.0,105860.0,0.41577431]
[1737316489465,0.56707543,105880.0,105860.0,0.91555173]
[1737316489670,0.56707543,105880.0,105870.0,0.047282]
[1737316489875,0.56707543,105880.0,105870.0,0.00768724]
[1737316490969,0.45470705,105880.0,105870.0,0.63427246]
[1737316491875,0.45470705,105880.0,105870.0,0.63900274]
[1737316492375,0.45470705,105880.0,105870.0,0.57789647]
[1737316492675,0.45470705,105880.0,105870.0,0.58262688]
[1737316492974,0.45470705,105880.0,105870.0,0.58262628]
[1737316493273,0.45470705,105880.0,105870.0,0.58262625]
[1737316493471,0.45470705,105880.0,105870.0,0.28708825]
[1737316493674,0.45470705,105880.0,105870.0,0.33437018]
[1737316494077,0.45470705,105880.0,105870.0,0.34568877]
[1737316494972,0.45470705,105880.0,105870.0,0.34568835]
[1737316495173,0.45470705,105880.0,105870.0,0.70648835]
[1737316495677,0.28790705,105880.0,105870.0,0.70648835]
[1737316495978,0.28790705,105880.0,105870.0,0.99444043]
[1737316496873,0.28790705,105880.0,105870.0,0.99444007]
[1737316498278,0.28790705,105880.0,105870.0,0.99444002]
[1737316498576,0.12670705,105880.0,105870.0,0.99444002]
[1737316500173,0.07942805,105880.0,105870.0,1.15324002]
[1737316500576,0.07942805,105880.0,105870.0,1.31674002]
[1737316500874,0.07942805,105880.0,105870.0,1.31673971]
[1737316501582,0.12670505,105880.0,105870.0,1.65251713]
[1737316502183,0.12670505,105880.0,105870.0,1.60523513]
[1737316503179,0.12670505,105880.0,105870.0,0.92509753]
[1737316503888,0.12670505,105880.0,105870.0,0.76159753]
[1737316504581,0.12670505,105880.0,105870.0,0.92876639]
[1737316505784,0.12670505,105880.0,105870.0,0.18617306]
[1737316506085,0.12670505,105880.0,105870.0,0.17012486]
[1737316506281,0.48750505,105880.0,105870.0,0.17012486]
[1737316506680,0.12670505,105880.0,105870.0,0.17012486]
[1737316506892,0.48750505,105880.0,105870.0,0.17012534]
[1737316507079,0.48750505,105880.0,105860.0,0.17861298]
[1737316507283,0.226482,105870.0,105860.0,0.58965547]
[1737316507484,0.047282,105870.0,105860.0,0.58965547]
[1737316507690,0.30590905,105880.0,105870.0,0.047282]
[1737316507988,0.30590905,105880.0,105870.0,0.41103825]
[1737316508390,0.30590905,105880.0,105870.0,0.58673815]
[1737316509482,0.30590905,105880.0,105870.0,0.70662501]
[1737316509682,0.12670905,105880.0,105870.0,0.75390701]
[1737316509886,0.12670905,105880.0,105870.0,0.34582501]
[1737316510186,0.12670905,105880.0,105870.0,0.70662501]
[1737316510682,0.12670905,105880.0,105870.0,0.71135487]
[1737316510884,0.12670905,105880.0,105870.0,1.33517786]
[1737316511384,0.12670905,105880.0,105870.0,0.97437786]
[1737316511583,0.12670905,105880.0,105870.0,1.15947786]
[1737316512590,0.12670905,105880.0,105870.0,0.93648453]
[1737316512794,0.12670905,105880.0,105870.0,0.57568453]
[1737316513490,0.12670905,105880.0,105870.0,0.57095467]
[1737316513691,0.12670905,105880.0,105870.0,0.57568466]
[1737316513891,0.12670905,105880.0,105870.0,0.93648466]
[1737316514279,0.48750905,105880.0,105870.0,0.32793566]
[1737316514482,0.48750905,105880.0,105870.0,0.32320573]
[1737316514983,0.48750905,105880.0,105870.0,0.32793606]
[1737316515586,0.12670905,105880.0,105870.0,0.32793606]
[1737316515785,0.12670905,105880.0,105870.0,0.37521806]
[1737316516087,0.12670905,105880.0,105870.0,0.27833783]
[1737316516494,0.12670905,105880.0,105870.0,0.23105583]
[1737316517392,0.12670905,105880.0,105870.0,0.23105559]
[1737316517595,0.12670905,105880.0,105870.0,0.39861604]
[1737316518695,0.12670905,105880.0,105870.0,0.41024448]
[1737316519294,0.07942805,105880.0,105870.0,1.16302648]
[1737316520494,0.07942805,105880.0,105870.0,1.05149817]
[1737316520795,0.12670505,105880.0,105870.0,1.00421617]
[1737316520994,0.12670505,105880.0,105870.0,1.05149817]
[1737316521295,0.12670505,105880.0,105870.0,1.05149773]
[1737316522784,0.12670505,105880.0,105870.0,1.00421573]
[1737316522986,0.12670505,105880.0,105870.0,1.00473448]
[1737316523189,0.12670505,105880.0,105870.0,1.05201653]
[1737316523691,0.12670505,105880.0,105870.0,1.05149764]
[1737316523899,0.12670505,105880.0,105870.0,1.00421576]
[1737316524595,0.12670505,105880.0,105870.0,0.69979175]
[1737316524983,0.12670505,105880.0,105870.0,0.35509175]
[1737316525187,0.48750505,105880.0,105870.0,0.34346331]
[1737316525392,0.65980505,105880.0,105870.0,0.34346331]
[1737316526195,0.65980505,105880.0,105870.0,0.00768589]
[1737316527596,0.29900505,105880.0,105870.0,0.28732648]
[1737316530704,0.29900505,105880.0,105870.0,0.79006528]
[1737316531508,0.07942805,105880.0,105870.0,0.83734728]
[1737316531804,0.07942805,105880.0,105870.0,1.37094728]
[1737316533510,0.07942805,105880.0,105870.0,1.14725792]
[1737316534899,0.07942805,105880.0,105870.0,1.48303534]
[1737316537611,0.07942805,105880.0,105870.0,1.14725792]
[1737316538503,0.07942805,105880.0,105870.0,1.14725773]
[1737316538702,0.07942805,105880.0,105870.0,1.14777666]
[1737316538901,0.07942805,105880.0,105870.0,1.48355408]
[1737316539211,0.07942805,105880.0,105870.0,1.48303515]
[1737316539597,0.07942805,105880.0,105870.0,1.48355408]
[1737316539800,0.07942805,105880.0,105870.0,1.48303515]
[1737316540195,0.07942805,105880.0,105870.0,1.48355408]
[1737316540411,0.1043992,105890.0,105880.0,0.047277]
[1737316540601,0.14142497,105910.0,105890.0,0.047273]
[1737316540801,0.16843002,105920.0,105890.0,0.047273]
[1737316540802,0.16843002,105920.0,105910.0,0.047264]
[1737316540998,0.16843002,105920.0,105910.0,0.92398874]
[1737316542404,0.047252,105940.0,105920.0,0.047256]
[1737316542709,0.047252,105940.0,105920.0,0.41574031]
[1737316542909,0.047252,105940.0,105920.0,0.58284031]
[1737316543311,0.3608,105950.0,105930.0,0.3608]
[1737316543501,0.04725,105940.0,105930.0,0.58359248]
[1737316543707,0.047247,105950.0,105930.0,0.63084448]
[1737316544006,0.04725,105940.0,105930.0,0.23047415]
[1737316544208,0.04725,105950.0,105930.0,0.63852715]
[1737316544414,0.04725,105940.0,105930.0,0.63379997]
[1737316546312,0.04725,105940.0,105930.0,0.63379993]
[1737316546514,0.04725,105940.0,105930.0,0.58654693]
[1737316546715,0.04725,105940.0,105930.0,0.63380193]
[1737316547014,0.04725,105940.0,105930.0,0.93331389]
[1737316547716,0.04725,105940.0,105930.0,0.93035944]
[1737316548419,0.04725,105940.0,105930.0,0.54375458]
[1737316548611,0.04725,105940.0,105930.0,0.555497]
[1737316549320,0.04725,105940.0,105930.0,0.5408]
[1737316549715,0.372578,105970.0,105930.0,0.54092216]
[1737316549916,0.047249,105950.0,105940.0,0.3608]
[1737316550116,0.04725,105940.0,105930.0,0.71092216]
[1737316550413,0.04725,105940.0,105930.0,0.18307643]
[1737316550611,0.04725,105940.0,105930.0,0.18012216]
[1737316550805,0.04725,105940.0,105930.0,0.00012216]
[1737316551506,0.04725,105940.0,105930.0,0.00307671]
[1737316551918,0.04725,105940.0,105930.0,0.00012216]
[1737316552108,0.40805,105940.0,105930.0,0.00012216]
[1737316552505,0.04725,105940.0,105930.0,0.00012216]
[1737316552711,0.04725,105940.0,105930.0,0.00307679]
[1737316552911,0.04725,105940.0,105930.0,0.00012216]
[1737316553416,0.04725,105940.0,105930.0,0.00307675]
[1737316553917,0.04725,105940.0,105930.0,0.00012216]
[1737316554216,0.04725,105940.0,105930.0,0.0030768]
[1737316554613,0.04725,105940.0,105930.0,0.36387673]
[1737316555914,0.04725,105940.0,105930.0,0.53064369]
[1737316556820,0.04725,105940.0,105930.0,0.16984369]
[1737316557214,0.40805,105940.0,105930.0,0.16688912]
[1737316557519,0.40805,105940.0,105930.0,0.00307695]
[1737316557713,0.04725,105940.0,105930.0,0.00307695]
[1737316558020,0.40805,105940.0,105930.0,0.00307695]
[1737316558319,0.40805,105940.0,105930.0,0.00307689]
[1737316559818,0.40805,105940.0,105930.0,0.00307688]
[1737316561518,0.40805,105940.0,105920.0,0.38955944]
[1737316561519,0.047255,105930.0,105920.0,0.38955944]
[1737316561818,0.047264,105910.0,105900.0,0.33577742]
[1737316562122,0.768864,105910.0,105880.0,0.39420991]
[1737316562319,0.047273,105890.0,105880.0,0.39893914]
[1737316562518,0.04737831,105890.0,105880.0,0.39893914]
[1737316563111,0.04737831,105890.0,105880.0,0.0047297]
[1737316563317,0.04737831,105890.0,105870.0,0.59482669]
[1737316563515,0.04737831,105890.0,105880.0,0.047277]
[1737316564223,0.04737831,105890.0,105880.0,0.21429258]